Workbook

Sheet 22.11.2024
E1: ______________Утверждаю Директор ГБОУ Белокатайская КШИ
A2: МЕНЮ
B3: ="22 ноября 2024 г." -> 22 ноября 2024 г.
B5: ГБОУ Белокатайская КШИ
B6: =Группа -> школы младшие классы
A7: ГБОУ Белокатайская КШИ | C7: =Группа -> школы младшие классы
A8: Код блюда | B8: Наименование блюда | C8: Выход, г | D8: Белки, г | F8: Жиры, г | H8: Углево-ды, г | I8: ЭЦ, ккал | J8: НЖК | K8: ПНЖК | L8: МЖК | M8: Холестерин | N8: МД | O8: Крахмал | P8: ПВ | Q8: РПВ | R8: НПВ | S8: Органические кислоты | T8: Зола | U8: Na | V8: K | W8: Ca | X8: Mg | Y8: P | Z8: Fe | AA8: Витамин А | AB8: B | AC8: РЭ | AD8: ТЭ | AE8: В1 | AF8: В2 | AG8: РР | AH8: НЭ | AI8: С | AJ8: Алкоголь, г | AK8: Валин | AL8: изолейцин | AM8: лейцин | AN8: лизин | AO8: метионин | AP8: треонин | AQ8: триптофан | AR8: фенилаланин | AS8: аланин | AT8: аргинин | AU8: аспарагиновая | AV8: гистидин | AW8: глицин | AX8: глутаминовая | AY8: оксипролин | AZ8: пролин | BA8: серин | BB8: тирозин | BC8: цистин | BD8: масляная | BE8: капроновая | BF8: каприловая | BG8: каприновая | BH8: лауриновая | BI8: миристиновая | BJ8: пентадекановая | BK8: пальмитиновая | BL8: маргариновая | BM8: стеариновая | BN8: арахиновая | BO8: бегеновая | BP8: лигноцериновая | BQ8: миристолеиновая | BR8: пальмитолеиновая | BS8: олеиновая | BT8: гадолеиновая | BU8: эруковая | BV8: линолевая | BW8: линоленовая | BX8: арахидоновая | BY8: Аденин | BZ8: Гуанин | CA8: Ph
D9: всего | E9: в т.ч. жив. | F9: всего | G9: в т.ч. раст.
B10: Завтрак
A11: ="" ->  | B11: Омлет с морковью (вареный на пару) №236, сб.2018г. | C11: ="200" -> 200 | D11: 14.91 | E11: 15.23 | F11: 16.64 | G11: 0.00 | H11: 7.11 | I11: 233.24 | J11: 7.68 | K11: 0.15 | L11: 4.54 | M11: 0 | N11: 6.62 | O11: 0.09 | P11: 1.1 | Q11: 0 | R11: 0 | S11: 0.22 | T11: 2.4 | U11: 114.79 | V11: 325.34 | W11: 150.96 | X11: 39.19 | Y11: 287.03 | Z11: 3.02 | AA11: 300.69 | AB11: 5286.81 | AC11: 1362.17 | AD11: 0.92 | AE11: 0.12 | AF11: 0.59 | AG11: 0.66 | AH11: 4.96 | AI11: 1.36 | AJ11: 0 | AK11: 831.04 | AL11: 644.06 | AM11: 1156.95 | AN11: 965.83 | AO11: 448.95 | AP11: 656.6 | AQ11: 220.06 | AR11: 699.72 | AS11: 768.22 | AT11: 844.72 | AU11: 1354.56 | AV11: 364.69 | AW11: 450.73 | AX11: 1977.53 | AY11: 14.64 | AZ11: 431.86 | BA11: 990.15 | BB11: 509.33 | BC11: 312.93 | BD11: 0.18 | BE11: 0.08 | BF11: 0.04 | BG11: 0.1 | BH11: 0.11 | BI11: 0.52 | BJ11: 0 | BK11: 1.44 | BL11: 0 | BM11: 0.45 | BN11: 0 | BO11: 0 | BP11: 0 | BQ11: 0.1 | BR11: 0.15 | BS11: 1.18 | BT11: 0 | BU11: 0 | BV11: 0.06 | BW11: 0 | BX11: 0 | BY11: 0 | BZ11: 0 | CA11: 0 | CB11: 185.45 | CC11: 43.27 | CE11: 1181.83 | CG11: 0 | CH11: 0 | CI11: 0 | CJ11: 0 | CK11: 0 | CL11: 0 | CM11: 0 | CN11: 0 | CO11: 0 | CP11: 0 | CQ11: 0.3
A12: ="" ->  | B12: Масло сливочное | C12: ="10" -> 10 | D12: 0.08 | E12: 0.08 | F12: 7.25 | G12: 0.00 | H12: 0.13 | I12: 66.06 | J12: 4.71 | K12: 0.22 | L12: 0 | M12: 0 | N12: 0.13 | O12: 0 | P12: 0 | Q12: 0 | R12: 0 | S12: 0 | T12: 0.14 | U12: 1.5 | V12: 3 | W12: 2.4 | X12: 0 | Y12: 3 | Z12: 0.02 | AA12: 40 | AB12: 30 | AC12: 45 | AD12: 0.1 | AE12: 0 | AF12: 0.01 | AG12: 0.01 | AH12: 0.02 | AI12: 0 | AJ12: 0 | AK12: 4.2 | AL12: 4.1 | AM12: 7.6 | AN12: 4.5 | AO12: 1.7 | AP12: 4.7 | AQ12: 4.3 | AR12: 4.2 | AS12: 3.6 | AT12: 2.6 | AU12: 5.7 | AV12: 3.5 | AW12: 2.4 | AX12: 14.2 | AY12: 0 | AZ12: 4.8 | BA12: 5.4 | BB12: 4.2 | BC12: 1 | BD12: 0.27 | BE12: 0.12 | BF12: 0.07 | BG12: 0.15 | BH12: 0.17 | BI12: 0.79 | BJ12: 0 | BK12: 2.21 | BL12: 0 | BM12: 0.68 | BN12: 0 | BO12: 0 | BP12: 0 | BQ12: 0.15 | BR12: 0.23 | BS12: 1.8 | BT12: 0 | BU12: 0 | BV12: 0.09 | BW12: 0.01 | BX12: 0 | BY12: 0 | BZ12: 0 | CA12: 0 | CB12: 2.5 | CC12: 7.65 | CE12: 45 | CG12: 0 | CH12: 0 | CI12: 0 | CJ12: 0 | CK12: 0 | CL12: 0 | CM12: 0 | CN12: 0 | CO12: 0 | CP12: 0 | CQ12: 0
A13: ="" ->  | B13: Кофейный напиток на молоке сгущенном №305, сб.2018г. | C13: ="200" -> 200 | D13: 1.74 | E13: 1.37 | F13: 1.42 | G13: 0.00 | H13: 16.14 | I13: 81.31 | J13: 0.99 | K13: 0 | L13: 0.99 | M13: 0 | N13: 16.14 | O13: 0 | P13: 0 | Q13: 0 | R13: 0 | S13: 0.08 | T13: 0.34 | U13: 0 | V13: 61.07 | W13: 51.37 | X13: 5.62 | Y13: 36.2 | Z13: 0.04 | AA13: 4.79 | AB13: 4.56 | AC13: 8.93 | AD13: 0.04 | AE13: 0.01 | AF13: 0.06 | AG13: 0.07 | AH13: 0.34 | AI13: 0.08 | AJ13: 0 | AK13: 80.91 | AL13: 74.65 | AM13: 96.09 | AN13: 96.44 | AO13: 29.47 | AP13: 54.29 | AQ13: 16.97 | AR13: 57.15 | AS13: 42.15 | AT13: 42.86 | AU13: 94.66 | AV13: 30.36 | AW13: 25 | AX13: 284.15 | AY13: 0 | AZ13: 139.31 | BA13: 74.65 | BB13: 60.37 | BC13: 12.32 | BD13: 0 | BE13: 0 | BF13: 0 | BG13: 0 | BH13: 0 | BI13: 0 | BJ13: 0 | BK13: 0 | BL13: 0 | BM13: 0 | BN13: 0 | BO13: 0 | BP13: 0 | BQ13: 0 | BR13: 0 | BS13: 0.41 | BT13: 0 | BU13: 0 | BV13: 0.03 | BW13: 0.01 | BX13: 0.01 | BY13: 0 | BZ13: 0 | CA13: 0 | CB13: 213.06 | CC13: 10.1 | CE13: 5.55 | CG13: 0 | CH13: 0 | CI13: 0 | CJ13: 0 | CK13: 0 | CL13: 0 | CM13: 0 | CN13: 0 | CO13: 0 | CP13: 1.5 | CQ13: 0
A14: ="-" -> - | B14: Хлеб пшеничный формовой из муки 1 сорта | C14: ="80" -> 80 | D14: 6.08 | E14: 0.00 | F14: 0.72 | G14: 0.72 | H14: 37.52 | I14: 183.71 | J14: 0 | K14: 0 | L14: 0 | M14: 0 | N14: 0.88 | O14: 36.48 | P14: 0.16 | Q14: 0 | R14: 0 | S14: 0 | T14: 1.44 | U14: 0 | V14: 0 | W14: 0 | X14: 0 | Y14: 0 | Z14: 0 | AA14: 0 | AB14: 0 | AC14: 0 | AD14: 0 | AE14: 0 | AF14: 0 | AG14: 0 | AH14: 0 | AI14: 0 | AJ14: 0 | AK14: 293.6 | AL14: 305.6 | AM14: 468 | AN14: 155.2 | AO14: 92 | AP14: 184 | AQ14: 69.6 | AR14: 332.8 | AS14: 206.4 | AT14: 288 | AU14: 237.6 | AV14: 124.8 | AW14: 220.8 | AX14: 1846.4 | AY14: 0 | AZ14: 601.6 | BA14: 261.6 | BB14: 173.6 | BC14: 137.6 | BD14: 0 | BE14: 0 | BF14: 0 | BG14: 0 | BH14: 0 | BI14: 0 | BJ14: 0 | BK14: 0.09 | BL14: 0 | BM14: 0.01 | BN14: 0 | BO14: 0 | BP14: 0 | BQ14: 0 | BR14: 0.01 | BS14: 0.07 | BT14: 0 | BU14: 0 | BV14: 0.3 | BW14: 0.02 | BX14: 0 | BY14: 0 | BZ14: 0 | CA14: 0 | CB14: 31.28 | CC14: 4.94 | CE14: 0 | CG14: 0 | CH14: 0 | CI14: 0 | CJ14: 0 | CK14: 0 | CL14: 0 | CM14: 0 | CN14: 0 | CO14: 0 | CP14: 0 | CQ14: 0
A15: ="" ->  | B15: Сыр | C15: ="10" -> 10 | D15: 2.63 | E15: 2.63 | F15: 2.66 | G15: 0.00 | H15: 0.00 | I15: 35.06 | J15: 1.53 | K15: 0 | L15: 1.53 | M15: 0 | N15: 0 | O15: 0 | P15: 0 | Q15: 0 | R15: 0 | S15: 0.2 | T15: 0.43 | U15: 0 | V15: 10 | W15: 100 | X15: 5.5 | Y15: 60 | Z15: 0.07 | AA15: 21 | AB15: 17 | AC15: 23.8 | AD15: 0.04 | AE15: 0 | AF15: 0.04 | AG15: 0.02 | AH15: 0.68 | AI15: 0.07 | AJ15: 0 | AK15: 157 | AL15: 117 | AM15: 230 | AN15: 158 | AO15: 56 | AP15: 95 | AQ15: 70 | AR15: 134 | AS15: 76 | AT15: 87 | AU15: 156 | AV15: 70 | AW15: 51 | AX15: 517 | AY15: 0 | AZ15: 273 | BA15: 129 | BB15: 139 | BC15: 21.5 | BD15: 0 | BE15: 0.01 | BF15: 0.04 | BG15: 0.11 | BH15: 0.13 | BI15: 0.33 | BJ15: 0.04 | BK15: 0.7 | BL15: 0.01 | BM15: 0.16 | BN15: 0.01 | BO15: 0 | BP15: 0 | BQ15: 0 | BR15: 0.07 | BS15: 0.52 | BT15: 0 | BU15: 0 | BV15: 0.07 | BW15: 0 | BX15: 0 | BY15: 0 | BZ15: 0 | CA15: 0 | CB15: 4.08 | CC15: 7.39 | CE15: 23.83 | CG15: 0 | CH15: 0 | CI15: 0 | CJ15: 0 | CK15: 0 | CL15: 0 | CM15: 0 | CN15: 0 | CO15: 0 | CP15: 0 | CQ15: 0
B16: Итого за 'Завтрак' | D16: 25.44 | E16: 19.31 | F16: 28.69 | G16: 0.72 | H16: 60.90 | I16: 599.38 | J16: 14.9 | K16: 0.37 | L16: 7.05 | M16: 0 | N16: 23.18 | O16: 36.56 | P16: 1.16 | Q16: 0 | R16: 0 | S16: 0.49 | T16: 4.75 | U16: 116.29 | V16: 360.37 | W16: 286.62 | X16: 45.22 | Y16: 348.92 | Z16: 2.76 | AA16: 246.2 | AB16: 4281.01 | AC16: 1439.9 | AD16: 1.09 | AE16: 0.1 | AF16: 0.59 | AG16: 0.63 | AH16: 6 | AI16: 0.69 | AJ16: 0 | AK16: 1366.75 | AL16: 1145.41 | AM16: 1958.63 | AN16: 1379.98 | AO16: 628.12 | AP16: 994.59 | AQ16: 380.92 | AR16: 1227.87 | AS16: 1096.37 | AT16: 1265.18 | AU16: 1848.52 | AV16: 593.35 | AW16: 749.93 | AX16: 4639.28 | AY16: 14.64 | AZ16: 1450.57 | BA16: 1460.81 | BB16: 886.5 | BC16: 485.35 | BD16: 0.44 | BE16: 0.21 | BF16: 0.15 | BG16: 0.36 | BH16: 0.41 | BI16: 1.65 | BJ16: 0.04 | BK16: 4.44 | BL16: 0.01 | BM16: 1.29 | BN16: 0.01 | BO16: 0 | BP16: 0 | BQ16: 0.25 | BR16: 0.46 | BS16: 3.98 | BT16: 0 | BU16: 0 | BV16: 0.56 | BW16: 0.04 | BX16: 0.01 | BY16: 0 | BZ16: 0 | CA16: 0 | CB16: 436.36 | CC16: =SUM($CC$10:$CC$15) -> 73.35 | CD16: =$I$16/$I$46*100 -> 34.00737589 | CE16: 959.7 | CG16: 0 | CH16: 0 | CI16: 0 | CJ16: 0 | CK16: 0 | CL16: 0 | CM16: 0 | CN16: 0 | CO16: 0 | CP16: 1.5 | CQ16: 0.3
B17: Завтрак 2
A18: ="" ->  | B18: Молоко кипяченое №299, сб.2018 | C18: ="200" -> 200 | D18: 5.74 | E18: 6.11 | F18: 5.93 | G18: 0.00 | H18: 9.01 | I18: 111.25 | J18: 4.21 | K18: 0 | L18: 0 | M18: 0 | N18: 9.01 | O18: 0 | P18: 0 | Q18: 0 | R18: 0 | S18: 0.21 | T18: 1.47 | U18: 105.35 | V18: 270.71 | W18: 222.5 | X18: 25.66 | Y18: 164.98 | Z18: 0.18 | AA18: 25.28 | AB18: 16.86 | AC18: 46.35 | AD18: 0 | AE18: 0.06 | AF18: 0.25 | AG18: 0.17 | AH18: 1.69 | AI18: 1.1 | AJ18: 0 | AK18: 0 | AL18: 0 | AM18: 0 | AN18: 0 | AO18: 0 | AP18: 0 | AQ18: 0 | AR18: 0 | AS18: 0 | AT18: 0 | AU18: 0 | AV18: 0 | AW18: 0 | AX18: 0 | AY18: 0 | AZ18: 0 | BA18: 0 | BB18: 0 | BC18: 0 | BD18: 0 | BE18: 0 | BF18: 0 | BG18: 0 | BH18: 0 | BI18: 0 | BJ18: 0 | BK18: 0 | BL18: 0 | BM18: 0 | BN18: 0 | BO18: 0 | BP18: 0 | BQ18: 0 | BR18: 0 | BS18: 0 | BT18: 0 | BU18: 0 | BV18: 0 | BW18: 0 | BX18: 0 | BY18: 0 | BZ18: 0 | CA18: 0 | CB18: 186.26 | CC18: 12.22 | CE18: 28.09 | CG18: 0 | CH18: 0 | CI18: 0 | CJ18: 0 | CK18: 0 | CL18: 0 | CM18: 0 | CN18: 0 | CO18: 0 | CP18: 0 | CQ18: 0
B19: Итого за 'Завтрак 2' | D19: 5.74 | E19: 6.11 | F19: 5.93 | G19: 0.00 | H19: 9.01 | I19: 111.25 | J19: 4.21 | K19: 0 | L19: 0 | M19: 0 | N19: 9.01 | O19: 0 | P19: 0 | Q19: 0 | R19: 0 | S19: 0.21 | T19: 1.47 | U19: 105.35 | V19: 270.71 | W19: 222.5 | X19: 25.66 | Y19: 164.98 | Z19: 0.18 | AA19: 25.28 | AB19: 16.86 | AC19: 46.35 | AD19: 0 | AE19: 0.06 | AF19: 0.25 | AG19: 0.17 | AH19: 1.69 | AI19: 1.1 | AJ19: 0 | AK19: 0 | AL19: 0 | AM19: 0 | AN19: 0 | AO19: 0 | AP19: 0 | AQ19: 0 | AR19: 0 | AS19: 0 | AT19: 0 | AU19: 0 | AV19: 0 | AW19: 0 | AX19: 0 | AY19: 0 | AZ19: 0 | BA19: 0 | BB19: 0 | BC19: 0 | BD19: 0 | BE19: 0 | BF19: 0 | BG19: 0 | BH19: 0 | BI19: 0 | BJ19: 0 | BK19: 0 | BL19: 0 | BM19: 0 | BN19: 0 | BO19: 0 | BP19: 0 | BQ19: 0 | BR19: 0 | BS19: 0 | BT19: 0 | BU19: 0 | BV19: 0 | BW19: 0 | BX19: 0 | BY19: 0 | BZ19: 0 | CA19: 0 | CB19: 186.26 | CC19: =SUM($CC$17:$CC$18) -> 12.22 | CD19: =$I$19/$I$46*100 -> 6.312056738 | CE19: 28.09 | CG19: 0 | CH19: 0 | CI19: 0 | CJ19: 0 | CK19: 0 | CL19: 0 | CM19: 0 | CN19: 0 | CO19: 0 | CP19: 0 | CQ19: 0
B20: Обед
A21: ="" ->  | B21: Салат из свежих огурцов № 14, сб. 2018 г. | C21: ="80" -> 80 | D21: 0.65 | E21: 0.00 | F21: 3.59 | G21: 0.00 | H21: 3.29 | I21: 44.22 | J21: 0.5 | K21: 2.6 | L21: 0.5 | M21: 0 | N21: 2.3 | O21: 0.07 | P21: 0.92 | Q21: 0 | R21: 0 | S21: 0.09 | T21: 0.6 | U21: 62.42 | V21: 98.9 | W21: 16.91 | X21: 9.38 | Y21: 29.91 | Z21: 0.43 | AA21: 0 | AB21: 31.1 | AC21: 6.48 | AD21: 1.85 | AE21: 0.02 | AF21: 0.02 | AG21: 0.12 | AH21: 0.25 | AI21: 3.07 | AJ21: 0 | AK21: 16.45 | AL21: 12.8 | AM21: 18.28 | AN21: 15.84 | AO21: 3.66 | AP21: 12.79 | AQ21: 3.05 | AR21: 10.36 | AS21: 15.84 | AT21: 27.43 | AU21: 32.29 | AV21: 6.11 | AW21: 17.06 | AX21: 85.3 | AY21: 0 | AZ21: 10.36 | BA21: 16.45 | BB21: 12.79 | BC21: 4.27 | BD21: 0 | BE21: 0 | BF21: 0 | BG21: 0 | BH21: 0 | BI21: 0 | BJ21: 0 | BK21: 0.22 | BL21: 0 | BM21: 0.14 | BN21: 0.01 | BO21: 0.02 | BP21: 0 | BQ21: 0 | BR21: 0 | BS21: 0.84 | BT21: 0 | BU21: 0 | BV21: 2.37 | BW21: 0 | BX21: 0 | BY21: 0 | BZ21: 0 | CA21: 0 | CB21: 71.88 | CC21: 13.21 | CE21: 5.18 | CG21: 0 | CH21: 0 | CI21: 0 | CJ21: 0 | CK21: 0 | CL21: 0 | CM21: 0 | CN21: 0 | CO21: 0 | CP21: 0 | CQ21: 0.16
A22: ="аа" -> аа | B22: Суп крестьянский с крупой №67, сб.2018г. | C22: ="250" -> 250 | D22: 2.11 | E22: 0.00 | F22: 3.75 | G22: 0.00 | H22: 14.66 | I22: 93.49 | J22: 0.56 | K22: 2.6 | L22: 0.56 | M22: 0 | N22: 3.15 | O22: 9.45 | P22: 2.07 | Q22: 0 | R22: 0 | S22: 0.19 | T22: 1.57 | U22: 318.33 | V22: 252.36 | W22: 25.91 | X22: 17.34 | Y22: 59.23 | Z22: 0.66 | AA22: 0 | AB22: 968.8 | AC22: 201.65 | AD22: 1.99 | AE22: 0.04 | AF22: 0.04 | AG22: 0.68 | AH22: 1.25 | AI22: 8 | AJ22: 0 | AK22: 61.06 | AL22: 57.81 | AM22: 80 | AN22: 63.08 | AO22: 20.68 | AP22: 44.84 | AQ22: 17.67 | AR22: 71.58 | AS22: 68.25 | AT22: 91.76 | AU22: 133.11 | AV22: 26.62 | AW22: 52.88 | AX22: 452.44 | AY22: 0 | AZ22: 116.75 | BA22: 64.63 | BB22: 43.52 | BC22: 25.8 | BD22: 0 | BE22: 0 | BF22: 0 | BG22: 0 | BH22: 0 | BI22: 0 | BJ22: 0 | BK22: 0.26 | BL22: 0 | BM22: 0.15 | BN22: 0.01 | BO22: 0.02 | BP22: 0 | BQ22: 0 | BR22: 0 | BS22: 0.88 | BT22: 0 | BU22: 0 | BV22: 2.42 | BW22: 0 | BX22: 0 | BY22: 0 | BZ22: 0 | CA22: 0 | CB22: 265.98 | CC22: 5.62 | CE22: 161.47 | CG22: 0 | CH22: 0 | CI22: 0 | CJ22: 0 | CK22: 0 | CL22: 0 | CM22: 0 | CN22: 0 | CO22: 0 | CP22: 0 | CQ22: 0.8
A23: ="" ->  | B23: Гуляш №96, сб.2018 г. | C23: ="90" -> 90 | D23: 12.42 | E23: 11.94 | F23: 12.87 | G23: 2.61 | H23: 3.13 | I23: 176.91 | J23: 5.43 | K23: 1.95 | L23: 0 | M23: 0 | N23: 1.09 | O23: 1.7 | P23: 0.34 | Q23: 0 | R23: 0 | S23: 0.09 | T23: 1.21 | U23: 189.57 | V23: 245.5 | W23: 10.23 | X23: 16.74 | Y23: 128.55 | Z23: 1.88 | AA23: 0 | AB23: 35.86 | AC23: 8.79 | AD23: 1.69 | AE23: 0.03 | AF23: 0.07 | AG23: 2.49 | AH23: 6.02 | AI23: 0.25 | AJ23: 0 | AK23: 675.49 | AL23: 512.16 | AM23: 967.84 | AN23: 1025.66 | AO23: 289.24 | AP23: 522.77 | AQ23: 137.16 | AR23: 522.19 | AS23: 704.82 | AT23: 678.92 | AU23: 1144.61 | AV23: 460.43 | AW23: 609.69 | AX23: 2046.15 | AY23: 186.09 | AZ23: 462.94 | BA23: 512.57 | BB23: 428.25 | BC23: 171.02 | BD23: 0 | BE23: 0 | BF23: 0 | BG23: 0 | BH23: 0 | BI23: 0 | BJ23: 0 | BK23: 0.16 | BL23: 0 | BM23: 0.11 | BN23: 0.01 | BO23: 0.02 | BP23: 0 | BQ23: 0 | BR23: 0 | BS23: 0.61 | BT23: 0 | BU23: 0 | BV23: 1.53 | BW23: 0 | BX23: 0 | BY23: 0 | BZ23: 0 | CA23: 0 | CB23: 54.74 | CC23: 41.79 | CE23: 5.98 | CG23: 0 | CH23: 0 | CI23: 0 | CJ23: 0 | CK23: 0 | CL23: 0 | CM23: 0 | CN23: 0 | CO23: 0 | CP23: 0 | CQ23: 0.4
A24: ="аа" -> аа | B24: Капуста тушеная №148, сб. 2018 г. | C24: ="150" -> 150 | D24: 3.37 | E24: 0.00 | F24: 4.76 | G24: 0.00 | H24: 17.31 | I24: 111.22 | J24: 0.65 | K24: 3.38 | L24: 0.65 | M24: 0 | N24: 12.52 | O24: 1.33 | P24: 3.45 | Q24: 0 | R24: 0 | S24: 0.62 | T24: 1.9 | U24: 217.42 | V24: 498.45 | W24: 77.66 | X24: 27.58 | Y24: 54.77 | Z24: 1.07 | AA24: 0 | AB24: 367.36 | AC24: 75.96 | AD24: 2.55 | AE24: 0.05 | AF24: 0.06 | AG24: 1.07 | AH24: 1.76 | AI24: 31.91 | AJ24: 0 | AK24: 103.11 | AL24: 89.24 | AM24: 118.61 | AN24: 104.01 | AO24: 38.46 | AP24: 79.02 | AQ24: 18.12 | AR24: 100.03 | AS24: 121.84 | AT24: 145.49 | AU24: 287.76 | AV24: 49.12 | AW24: 82.84 | AX24: 504.34 | AY24: 0 | AZ24: 112.96 | BA24: 104.94 | BB24: 85.66 | BC24: 36.12 | BD24: 0 | BE24: 0 | BF24: 0 | BG24: 0 | BH24: 0 | BI24: 0 | BJ24: 0 | BK24: 0.29 | BL24: 0 | BM24: 0.19 | BN24: 0.01 | BO24: 0.03 | BP24: 0 | BQ24: 0 | BR24: 0 | BS24: 1.09 | BT24: 0 | BU24: 0 | BV24: 3.08 | BW24: 0 | BX24: 0 | BY24: 0 | BZ24: 0 | CA24: 0 | CB24: 166.08 | CC24: 1.94 | CE24: 61.23 | CG24: 0 | CH24: 0 | CI24: 0 | CJ24: 0 | CK24: 0 | CL24: 0 | CM24: 0 | CN24: 0 | CO24: 0 | CP24: 4.5 | CQ24: 0.5
A25: ="" ->  | B25: Чай с молоком и сахаром №301, сб. 2018 г. | C25: ="180" -> 180 | D25: 1.40 | E25: 1.31 | F25: 1.31 | G25: 0.05 | H25: 6.95 | I25: 43.56 | J25: 0.9 | K25: 0 | L25: 0 | M25: 0 | N25: 6.86 | O25: 0 | P25: 0.09 | Q25: 0 | R25: 0 | S25: 0.05 | T25: 0.37 | U25: 22.55 | V25: 57.96 | W25: 47.66 | X25: 5.48 | Y25: 35.24 | Z25: 0.05 | AA25: 5.4 | AB25: 3.6 | AC25: 9.9 | AD25: 0 | AE25: 0.01 | AF25: 0.05 | AG25: 0.04 | AH25: 0.36 | AI25: 0.23 | AJ25: 0 | AK25: 0 | AL25: 0 | AM25: 0 | AN25: 0 | AO25: 0 | AP25: 0 | AQ25: 0 | AR25: 0 | AS25: 0 | AT25: 0 | AU25: 0 | AV25: 0 | AW25: 0 | AX25: 0 | AY25: 0 | AZ25: 0 | BA25: 0 | BB25: 0 | BC25: 0 | BD25: 0 | BE25: 0 | BF25: 0 | BG25: 0 | BH25: 0 | BI25: 0 | BJ25: 0 | BK25: 0 | BL25: 0 | BM25: 0 | BN25: 0 | BO25: 0 | BP25: 0 | BQ25: 0 | BR25: 0 | BS25: 0 | BT25: 0 | BU25: 0 | BV25: 0 | BW25: 0 | BX25: 0 | BY25: 0 | BZ25: 0 | CA25: 0 | CB25: 165.86 | CC25: 3.55 | CE25: 6 | CG25: 0 | CH25: 0 | CI25: 0 | CJ25: 0 | CK25: 0 | CL25: 0 | CM25: 0 | CN25: 0 | CO25: 0 | CP25: 5.4 | CQ25: 0
A26: ="-" -> - | B26: Хлеб пшеничный формовой из муки 1 сорта | C26: ="30" -> 30 | D26: 2.28 | E26: 0.00 | F26: 0.27 | G26: 0.27 | H26: 14.07 | I26: 68.89 | J26: 0 | K26: 0 | L26: 0 | M26: 0 | N26: 0.33 | O26: 13.68 | P26: 0.06 | Q26: 0 | R26: 0 | S26: 0 | T26: 0.54 | U26: 0 | V26: 0 | W26: 0 | X26: 0 | Y26: 0 | Z26: 0 | AA26: 0 | AB26: 0 | AC26: 0 | AD26: 0 | AE26: 0 | AF26: 0 | AG26: 0 | AH26: 0 | AI26: 0 | AJ26: 0 | AK26: 110.1 | AL26: 114.6 | AM26: 175.5 | AN26: 58.2 | AO26: 34.5 | AP26: 69 | AQ26: 26.1 | AR26: 124.8 | AS26: 77.4 | AT26: 108 | AU26: 89.1 | AV26: 46.8 | AW26: 82.8 | AX26: 692.4 | AY26: 0 | AZ26: 225.6 | BA26: 98.1 | BB26: 65.1 | BC26: 51.6 | BD26: 0 | BE26: 0 | BF26: 0 | BG26: 0 | BH26: 0 | BI26: 0 | BJ26: 0 | BK26: 0.03 | BL26: 0 | BM26: 0 | BN26: 0 | BO26: 0 | BP26: 0 | BQ26: 0 | BR26: 0 | BS26: 0.03 | BT26: 0 | BU26: 0 | BV26: 0.11 | BW26: 0.01 | BX26: 0 | BY26: 0 | BZ26: 0 | CA26: 0 | CB26: 11.73 | CC26: 1.85 | CE26: 0 | CG26: 0 | CH26: 0 | CI26: 0 | CJ26: 0 | CK26: 0 | CL26: 0 | CM26: 0 | CN26: 0 | CO26: 0 | CP26: 0 | CQ26: 0
A27: ="" ->  | B27: Хлеб ржаной | C27: ="30" -> 30 | D27: 1.98 | E27: 0.00 | F27: 0.36 | G27: 0.00 | H27: 12.51 | I27: 53.03 | J27: 0.06 | K27: 0 | L27: 0.06 | M27: 0 | N27: 0.36 | O27: 9.66 | P27: 2.49 | Q27: 0 | R27: 0 | S27: 0.3 | T27: 0.75 | U27: 0 | V27: 73.5 | W27: 10.5 | X27: 14.1 | Y27: 47.4 | Z27: 1.17 | AA27: 0 | AB27: 1.5 | AC27: 0.3 | AD27: 0.42 | AE27: 0.05 | AF27: 0.02 | AG27: 0.21 | AH27: 0.6 | AI27: 0 | AJ27: 0 | AK27: 96.6 | AL27: 74.4 | AM27: 128.1 | AN27: 66.9 | AO27: 27.9 | AP27: 59.4 | AQ27: 24 | AR27: 111.3 | AS27: 89.1 | AT27: 87.3 | AU27: 139.2 | AV27: 37.2 | AW27: 93 | AX27: 458.7 | AY27: 0 | AZ27: 157.8 | BA27: 87.3 | BB27: 54 | BC27: 39 | BD27: 0 | BE27: 0 | BF27: 0 | BG27: 0 | BH27: 0 | BI27: 0 | BJ27: 0 | BK27: 0.04 | BL27: 0 | BM27: 0 | BN27: 0.01 | BO27: 0 | BP27: 0 | BQ27: 0 | BR27: 0 | BS27: 0.03 | BT27: 0 | BU27: 0 | BV27: 0.14 | BW27: 0.02 | BX27: 0 | BY27: 0 | BZ27: 0 | CA27: 0 | CB27: 14.1 | CC27: 1.96 | CE27: 0.25 | CG27: 0 | CH27: 0 | CI27: 0 | CJ27: 0 | CK27: 0 | CL27: 0 | CM27: 0 | CN27: 0 | CO27: 0 | CP27: 0 | CQ27: 0
B28: Итого за 'Обед' | D28: 24.20 | E28: 13.24 | F28: 26.91 | G28: 2.92 | H28: 71.92 | I28: 591.33 | J28: 8.1 | K28: 10.53 | L28: 1.77 | M28: 0 | N28: 26.62 | O28: 35.89 | P28: 9.41 | Q28: 0 | R28: 0 | S28: 1.33 | T28: 6.95 | U28: 810.29 | V28: 1226.66 | W28: 188.88 | X28: 90.62 | Y28: 355.09 | Z28: 5.26 | AA28: 5.4 | AB28: 1408.23 | AC28: 303.08 | AD28: 8.49 | AE28: 0.2 | AF28: 0.27 | AG28: 4.61 | AH28: 10.25 | AI28: 43.46 | AJ28: 0 | AK28: 1062.8 | AL28: 861.01 | AM28: 1488.32 | AN28: 1333.69 | AO28: 414.43 | AP28: 787.82 | AQ28: 226.1 | AR28: 940.27 | AS28: 1077.24 | AT28: 1138.9 | AU28: 1826.07 | AV28: 626.28 | AW28: 938.28 | AX28: 4239.32 | AY28: 186.09 | AZ28: 1086.41 | BA28: 883.98 | BB28: 689.33 | BC28: 327.81 | BD28: 0 | BE28: 0 | BF28: 0 | BG28: 0 | BH28: 0 | BI28: 0 | BJ28: 0 | BK28: 1.01 | BL28: 0 | BM28: 0.59 | BN28: 0.05 | BO28: 0.1 | BP28: 0 | BQ28: 0 | BR28: 0.01 | BS28: 3.48 | BT28: 0 | BU28: 0 | BV28: 9.66 | BW28: 0.03 | BX28: 0 | BY28: 0 | BZ28: 0 | CA28: 0 | CB28: 750.37 | CC28: =SUM($CC$20:$CC$27) -> 69.92 | CD28: =$I$28/$I$46*100 -> 33.5506383 | CE28: 240.1 | CG28: 0 | CH28: 0 | CI28: 0 | CJ28: 0 | CK28: 0 | CL28: 0 | CM28: 0 | CN28: 0 | CO28: 0 | CP28: 9.9 | CQ28: 1.86
B29: Полдник
A30: ="" ->  | B30: Булочка молочная №291, сб. 2018 г. | C30: ="50" -> 50 | D30: 4.65 | E30: 0.63 | F30: 1.02 | G30: 0.02 | H30: 27.21 | I30: 133.83 | J30: 0.48 | K30: 0 | L30: 0.08 | M30: 0 | N30: 1.22 | O30: 24.72 | P30: 1.27 | Q30: 0 | R30: 0 | S30: 0.02 | T30: 0.48 | U30: 65.35 | V30: 68.65 | W30: 27.92 | X30: 8.03 | Y30: 45.68 | Z30: 0.44 | AA30: 2.4 | AB30: 1.6 | AC30: 4.4 | AD30: 0.6 | AE30: 0.05 | AF30: 0.04 | AG30: 0.4 | AH30: 1.36 | AI30: 0.1 | AJ30: 0 | AK30: 177.1 | AL30: 161.68 | AM30: 303.06 | AN30: 94 | AO30: 57.53 | AP30: 116.94 | AQ30: 37.6 | AR30: 188 | AS30: 124.08 | AT30: 150.4 | AU30: 127.84 | AV30: 75.2 | AW30: 131.6 | AX30: 1158.08 | AY30: 0 | AZ30: 364.72 | BA30: 188 | BB30: 94 | BC30: 75.2 | BD30: 0 | BE30: 0 | BF30: 0 | BG30: 0 | BH30: 0 | BI30: 0 | BJ30: 0 | BK30: 0.05 | BL30: 0 | BM30: 0 | BN30: 0 | BO30: 0 | BP30: 0 | BQ30: 0 | BR30: 0 | BS30: 0.04 | BT30: 0 | BU30: 0 | BV30: 0.19 | BW30: 0.01 | BX30: 0 | BY30: 0 | BZ30: 0 | CA30: 0 | CB30: 23.28 | CC30: 2.77 | CE30: 2.67 | CG30: 0 | CH30: 0 | CI30: 0 | CJ30: 0 | CK30: 0 | CL30: 0 | CM30: 0 | CN30: 0 | CO30: 0 | CP30: 0 | CQ30: 0.14
A31: ="-" -> - | B31: Сок яблочный | C31: ="200" -> 200 | D31: 1.00 | E31: 0.00 | F31: 0.20 | G31: 0.00 | H31: 20.60 | I31: 85.68 | J31: 0 | K31: 0 | L31: 0 | M31: 0 | N31: 19.8 | O31: 0.4 | P31: 0.4 | Q31: 0 | R31: 0 | S31: 1 | T31: 0.6 | U31: 12 | V31: 240 | W31: 14 | X31: 8 | Y31: 14 | Z31: 2.8 | AA31: 0 | AB31: 0 | AC31: 0 | AD31: 0.2 | AE31: 0.02 | AF31: 0.02 | AG31: 0.2 | AH31: 0.4 | AI31: 4 | AJ31: 0.4 | AK31: 16 | AL31: 20 | AM31: 28 | AN31: 28 | AO31: 4 | AP31: 16 | AQ31: 4 | AR31: 14 | AS31: 26 | AT31: 16 | AU31: 116 | AV31: 10 | AW31: 22 | AX31: 64 | AY31: 0 | AZ31: 20 | BA31: 24 | BB31: 10 | BC31: 8 | BD31: 0 | BE31: 0 | BF31: 0 | BG31: 0 | BH31: 0 | BI31: 0 | BJ31: 0 | BK31: 0 | BL31: 0 | BM31: 0 | BN31: 0 | BO31: 0 | BP31: 0 | BQ31: 0 | BR31: 0 | BS31: 0 | BT31: 0 | BU31: 0 | BV31: 0 | BW31: 0 | BX31: 0 | BY31: 0 | BZ31: 0 | CA31: 0 | CB31: 176.2 | CC31: 24 | CE31: 0 | CG31: 0 | CH31: 0 | CI31: 0 | CJ31: 0 | CK31: 0 | CL31: 0 | CM31: 0 | CN31: 0 | CO31: 0 | CP31: 0 | CQ31: 0
A32: ="-" -> - | B32: Мандарины | C32: ="100" -> 100 | D32: 0.59 | E32: 0.00 | F32: 0.15 | G32: 0.15 | H32: 6.96 | I32: 27.23 | J32: 0 | K32: 0 | L32: 0 | M32: 0 | N32: 5.55 | O32: 0 | P32: 1.41 | Q32: 0 | R32: 0 | S32: 0.81 | T32: 0.37 | U32: 8.88 | V32: 114.7 | W32: 25.9 | X32: 8.14 | Y32: 12.58 | Z32: 0.07 | AA32: 0 | AB32: 44.4 | AC32: 7.4 | AD32: 0.15 | AE32: 0.04 | AF32: 0.02 | AG32: 0.15 | AH32: 0.22 | AI32: 28.12 | AJ32: 0 | AK32: 0 | AL32: 0 | AM32: 0 | AN32: 0 | AO32: 0 | AP32: 0 | AQ32: 0 | AR32: 0 | AS32: 0 | AT32: 0 | AU32: 0 | AV32: 0 | AW32: 0 | AX32: 0 | AY32: 0 | AZ32: 0 | BA32: 0 | BB32: 0 | BC32: 0 | BD32: 0 | BE32: 0 | BF32: 0 | BG32: 0 | BH32: 0 | BI32: 0 | BJ32: 0 | BK32: 0 | BL32: 0 | BM32: 0 | BN32: 0 | BO32: 0 | BP32: 0 | BQ32: 0 | BR32: 0 | BS32: 0 | BT32: 0 | BU32: 0 | BV32: 0 | BW32: 0 | BX32: 0 | BY32: 0 | BZ32: 0 | CA32: 0 | CB32: 65.12 | CC32: 20 | CE32: 7.4 | CG32: 0 | CH32: 0 | CI32: 0 | CJ32: 0 | CK32: 0 | CL32: 0 | CM32: 0 | CN32: 0 | CO32: 0 | CP32: 0 | CQ32: 0
B33: Итого за 'Полдник' | D33: 6.25 | E33: 0.63 | F33: 1.37 | G33: 0.17 | H33: 54.77 | I33: 246.75 | J33: 0.48 | K33: 0 | L33: 0.08 | M33: 0 | N33: 26.57 | O33: 25.12 | P33: 3.08 | Q33: 0 | R33: 0 | S33: 1.83 | T33: 1.45 | U33: 86.23 | V33: 423.35 | W33: 67.82 | X33: 24.17 | Y33: 72.26 | Z33: 3.31 | AA33: 2.4 | AB33: 46 | AC33: 11.8 | AD33: 0.95 | AE33: 0.12 | AF33: 0.08 | AG33: 0.75 | AH33: 1.98 | AI33: 32.22 | AJ33: 0.4 | AK33: 193.1 | AL33: 181.68 | AM33: 331.06 | AN33: 122 | AO33: 61.53 | AP33: 132.94 | AQ33: 41.6 | AR33: 202 | AS33: 150.08 | AT33: 166.4 | AU33: 243.84 | AV33: 85.2 | AW33: 153.6 | AX33: 1222.08 | AY33: 0 | AZ33: 384.72 | BA33: 212 | BB33: 104 | BC33: 83.2 | BD33: 0 | BE33: 0 | BF33: 0 | BG33: 0 | BH33: 0 | BI33: 0 | BJ33: 0 | BK33: 0.05 | BL33: 0 | BM33: 0 | BN33: 0 | BO33: 0 | BP33: 0 | BQ33: 0 | BR33: 0 | BS33: 0.04 | BT33: 0 | BU33: 0 | BV33: 0.19 | BW33: 0.01 | BX33: 0 | BY33: 0 | BZ33: 0 | CA33: 0 | CB33: 264.6 | CC33: =SUM($CC$29:$CC$32) -> 46.77 | CD33: =$I$33/$I$46*100 -> 14 | CE33: 10.07 | CG33: 0 | CH33: 0 | CI33: 0 | CJ33: 0 | CK33: 0 | CL33: 0 | CM33: 0 | CN33: 0 | CO33: 0 | CP33: 0 | CQ33: 0.14
B34: Ужин
A35: ="" ->  | B35: Рыба, запеченная в молочном соусе № 92, сб. 2018 г. | C35: ="90" -> 90 | D35: 12.47 | E35: 1.81 | F35: 5.43 | G35: 2.20 | H35: 1.77 | I35: 105.76 | J35: 1.84 | K35: 1.49 | L35: 0 | M35: 0 | N35: 0.85 | O35: 0.87 | P35: 0.05 | Q35: 0 | R35: 0 | S35: 0.07 | T35: 0.59 | U35: 103.93 | V35: 28.6 | W35: 47.13 | X35: 4.04 | Y35: 39.21 | Z35: 0.18 | AA35: 23.98 | AB35: 12.51 | AC35: 30.18 | AD35: 1.07 | AE35: 0.01 | AF35: 0.05 | AG35: 0.04 | AH35: 0.54 | AI35: 0.09 | AJ35: 0 | AK35: 92.72 | AL35: 71.4 | AM35: 135 | AN35: 96.86 | AO35: 40.55 | AP35: 64.09 | AQ35: 32.98 | AR35: 80.17 | AS35: 63.76 | AT35: 71.76 | AU35: 114.41 | AV35: 41.21 | AW35: 41.38 | AX35: 286.13 | AY35: 0.72 | AZ35: 114.19 | BA35: 93.07 | BB35: 69.25 | BC35: 24.2 | BD35: 0.03 | BE35: 0.02 | BF35: 0.02 | BG35: 0.05 | BH35: 0.06 | BI35: 0.2 | BJ35: 0.01 | BK35: 0.62 | BL35: 0 | BM35: 0.22 | BN35: 0.01 | BO35: 0.02 | BP35: 0 | BQ35: 0.03 | BR35: 0.05 | BS35: 0.9 | BT35: 0 | BU35: 0 | BV35: 1.34 | BW35: 0 | BX35: 0 | BY35: 0 | BZ35: 0 | CA35: 0 | CB35: 30.41 | CC35: 27.63 | CE35: 26.07 | CG35: 0 | CH35: 0 | CI35: 0 | CJ35: 0 | CK35: 0 | CL35: 0 | CM35: 0 | CN35: 0 | CO35: 0 | CP35: 0.26 | CQ35: 0.3
A36: ="аа" -> аа | B36: Каша гречневая рассыпчатая №183, сб. 2018г. | C36: ="180/10" -> 180/10 | D36: 9.79 | E36: 0.07 | F36: 7.56 | G36: 0.00 | H36: 58.49 | I36: 306.90 | J36: 5.22 | K36: 0.22 | L36: 0.51 | M36: 0 | N36: 1.33 | O36: 47.48 | P36: 9.68 | Q36: 0 | R36: 0 | S36: 0 | T36: 2.2 | U36: 140.26 | V36: 180.79 | W36: 17.4 | X36: 128.65 | Y36: 181.19 | Z36: 4.62 | AA36: 20 | AB36: 38.57 | AC36: 46.71 | AD36: 0.79 | AE36: 0.2 | AF36: 0.11 | AG36: 2.89 | AH36: 6.19 | AI36: 0 | AJ36: 0 | AK36: 458.85 | AL36: 358.49 | AM36: 581.46 | AN36: 412.84 | AO36: 248.35 | AP36: 312.75 | AQ36: 142.7 | AR36: 460.39 | AS36: 450.59 | AT36: 866.2 | AU36: 855.1 | AV36: 234.54 | AW36: 557.5 | AX36: 1755.92 | AY36: 0 | AZ36: 389.97 | BA36: 472.27 | BB36: 335.44 | BC36: 255.43 | BD36: 0.2 | BE36: 0.09 | BF36: 0.05 | BG36: 0.11 | BH36: 0.13 | BI36: 0.6 | BJ36: 0 | BK36: 2 | BL36: 0 | BM36: 0.54 | BN36: 0.01 | BO36: 0 | BP36: 0 | BQ36: 0.12 | BR36: 0.19 | BS36: 2.04 | BT36: 0.01 | BU36: 0 | BV36: 0.74 | BW36: 0.07 | BX36: 0 | BY36: 0 | BZ36: 0 | CA36: 0 | CB36: 142.3 | CC36: 12.03 | CE36: 26.43 | CG36: 0 | CH36: 0 | CI36: 0 | CJ36: 0 | CK36: 0 | CL36: 0 | CM36: 0 | CN36: 0 | CO36: 0 | CP36: 0 | CQ36: 0.6
A37: ="" ->  | B37: Чай с сахаром №300, сб. 2018 г. | C37: ="180" -> 180 | D37: 0.17 | E37: 0.00 | F37: 0.04 | G37: 0.05 | H37: 5.03 | I37: 19.80 | J37: 0 | K37: 0 | L37: 0 | M37: 0 | N37: 4.94 | O37: 0 | P37: 0.09 | Q37: 0 | R37: 0 | S37: 0 | T37: 0.05 | U37: 0.05 | V37: 0.14 | W37: 0.14 | X37: 0 | Y37: 0 | Z37: 0.01 | AA37: 0 | AB37: 0 | AC37: 0 | AD37: 0 | AE37: 0 | AF37: 0 | AG37: 0 | AH37: 0 | AI37: 0 | AJ37: 0 | AK37: 0 | AL37: 0 | AM37: 0 | AN37: 0 | AO37: 0 | AP37: 0 | AQ37: 0 | AR37: 0 | AS37: 0 | AT37: 0 | AU37: 0 | AV37: 0 | AW37: 0 | AX37: 0 | AY37: 0 | AZ37: 0 | BA37: 0 | BB37: 0 | BC37: 0 | BD37: 0 | BE37: 0 | BF37: 0 | BG37: 0 | BH37: 0 | BI37: 0 | BJ37: 0 | BK37: 0 | BL37: 0 | BM37: 0 | BN37: 0 | BO37: 0 | BP37: 0 | BQ37: 0 | BR37: 0 | BS37: 0 | BT37: 0 | BU37: 0 | BV37: 0 | BW37: 0 | BX37: 0 | BY37: 0 | BZ37: 0 | CA37: 0 | CB37: 171.08 | CC37: 0.94 | CE37: 0 | CG37: 0 | CH37: 0 | CI37: 0 | CJ37: 0 | CK37: 0 | CL37: 0 | CM37: 0 | CN37: 0 | CO37: 0 | CP37: 5.4 | CQ37: 0
A38: ="-" -> - | B38: Хлеб пшеничный формовой из муки 1 сорта | C38: ="10" -> 10 | D38: 0.76 | E38: 0.00 | F38: 0.09 | G38: 0.09 | H38: 4.69 | I38: 22.96 | J38: 0 | K38: 0 | L38: 0 | M38: 0 | N38: 0.11 | O38: 4.56 | P38: 0.02 | Q38: 0 | R38: 0 | S38: 0 | T38: 0.18 | U38: 0 | V38: 0 | W38: 0 | X38: 0 | Y38: 0 | Z38: 0 | AA38: 0 | AB38: 0 | AC38: 0 | AD38: 0 | AE38: 0 | AF38: 0 | AG38: 0 | AH38: 0 | AI38: 0 | AJ38: 0 | AK38: 36.7 | AL38: 38.2 | AM38: 58.5 | AN38: 19.4 | AO38: 11.5 | AP38: 23 | AQ38: 8.7 | AR38: 41.6 | AS38: 25.8 | AT38: 36 | AU38: 29.7 | AV38: 15.6 | AW38: 27.6 | AX38: 230.8 | AY38: 0 | AZ38: 75.2 | BA38: 32.7 | BB38: 21.7 | BC38: 17.2 | BD38: 0 | BE38: 0 | BF38: 0 | BG38: 0 | BH38: 0 | BI38: 0 | BJ38: 0 | BK38: 0.01 | BL38: 0 | BM38: 0 | BN38: 0 | BO38: 0 | BP38: 0 | BQ38: 0 | BR38: 0 | BS38: 0.01 | BT38: 0 | BU38: 0 | BV38: 0.04 | BW38: 0 | BX38: 0 | BY38: 0 | BZ38: 0 | CA38: 0 | CB38: 3.91 | CC38: 0.62 | CE38: 0 | CG38: 0 | CH38: 0 | CI38: 0 | CJ38: 0 | CK38: 0 | CL38: 0 | CM38: 0 | CN38: 0 | CO38: 0 | CP38: 0 | CQ38: 0
A39: ="" ->  | B39: Хлеб ржаной | C39: ="50" -> 50 | D39: 1.65 | E39: 0.00 | F39: 0.30 | G39: 0.00 | H39: 10.43 | I39: 44.20 | J39: 0.05 | K39: 0 | L39: 0.05 | M39: 0 | N39: 0.3 | O39: 8.05 | P39: 2.08 | Q39: 0 | R39: 0 | S39: 0.25 | T39: 0.63 | U39: 0 | V39: 61.25 | W39: 8.75 | X39: 11.75 | Y39: 39.5 | Z39: 0.98 | AA39: 0 | AB39: 1.25 | AC39: 0.25 | AD39: 0.35 | AE39: 0.05 | AF39: 0.02 | AG39: 0.18 | AH39: 0.5 | AI39: 0 | AJ39: 0 | AK39: 80.5 | AL39: 62 | AM39: 106.75 | AN39: 55.75 | AO39: 23.25 | AP39: 49.5 | AQ39: 20 | AR39: 92.75 | AS39: 74.25 | AT39: 72.75 | AU39: 116 | AV39: 31 | AW39: 77.5 | AX39: 382.25 | AY39: 0 | AZ39: 131.5 | BA39: 72.75 | BB39: 45 | BC39: 32.5 | BD39: 0 | BE39: 0 | BF39: 0 | BG39: 0 | BH39: 0 | BI39: 0 | BJ39: 0 | BK39: 0.04 | BL39: 0 | BM39: 0 | BN39: 0.01 | BO39: 0 | BP39: 0 | BQ39: 0 | BR39: 0 | BS39: 0.03 | BT39: 0 | BU39: 0 | BV39: 0.12 | BW39: 0.02 | BX39: 0 | BY39: 0 | BZ39: 0 | CA39: 0 | CB39: 11.75 | CC39: 3.27 | CE39: 0.21 | CG39: 0 | CH39: 0 | CI39: 0 | CJ39: 0 | CK39: 0 | CL39: 0 | CM39: 0 | CN39: 0 | CO39: 0 | CP39: 0 | CQ39: 0
B40: Итого за 'Ужин' | D40: 24.84 | E40: 1.88 | F40: 13.42 | G40: 2.34 | H40: 80.40 | I40: 499.62 | J40: 7.12 | K40: 1.71 | L40: 0.57 | M40: 0 | N40: 7.53 | O40: 60.96 | P40: 11.91 | Q40: 0 | R40: 0 | S40: 0.32 | T40: 3.64 | U40: 244.24 | V40: 270.78 | W40: 73.42 | X40: 144.44 | Y40: 259.89 | Z40: 5.8 | AA40: 43.98 | AB40: 52.33 | AC40: 77.15 | AD40: 2.21 | AE40: 0.26 | AF40: 0.18 | AG40: 3.1 | AH40: 7.23 | AI40: 0.09 | AJ40: 0 | AK40: 668.77 | AL40: 530.08 | AM40: 881.71 | AN40: 584.85 | AO40: 323.65 | AP40: 449.34 | AQ40: 204.39 | AR40: 674.91 | AS40: 614.41 | AT40: 1046.71 | AU40: 1115.22 | AV40: 322.35 | AW40: 703.98 | AX40: 2655.09 | AY40: 0.72 | AZ40: 710.86 | BA40: 670.79 | BB40: 471.39 | BC40: 329.33 | BD40: 0.24 | BE40: 0.11 | BF40: 0.07 | BG40: 0.16 | BH40: 0.19 | BI40: 0.8 | BJ40: 0.01 | BK40: 2.66 | BL40: 0 | BM40: 0.76 | BN40: 0.02 | BO40: 0.02 | BP40: 0 | BQ40: 0.15 | BR40: 0.24 | BS40: 2.98 | BT40: 0.01 | BU40: 0 | BV40: 2.24 | BW40: 0.09 | BX40: 0 | BY40: 0 | BZ40: 0 | CA40: 0 | CB40: 359.46 | CC40: =SUM($CC$34:$CC$39) -> 44.49 | CD40: =$I$40/$I$46*100 -> 28.34723404 | CE40: 52.71 | CG40: 0 | CH40: 0 | CI40: 0 | CJ40: 0 | CK40: 0 | CL40: 0 | CM40: 0 | CN40: 0 | CO40: 0 | CP40: 5.66 | CQ40: 0.9
B41: Ужин 2
A42: ="" ->  | B42: Кефир №297 сб. 2021 | C42: ="180" -> 180 | D42: 5.12 | E42: 0.00 | F42: 5.64 | G42: 0.00 | H42: 7.06 | I42: 98.08 | J42: 0 | K42: 0 | L42: 0 | M42: 0 | N42: 7.06 | O42: 0 | P42: 0 | Q42: 0 | R42: 0 | S42: 0 | T42: 0 | U42: 0 | V42: 0 | W42: 0 | X42: 0 | Y42: 0 | Z42: 0 | AA42: 0 | AB42: 0 | AC42: 0 | AD42: 0 | AE42: 0 | AF42: 0 | AG42: 0 | AH42: 0 | AI42: 0 | AJ42: 0 | AK42: 0 | AL42: 0 | AM42: 0 | AN42: 0 | AO42: 0 | AP42: 0 | AQ42: 0 | AR42: 0 | AS42: 0 | AT42: 0 | AU42: 0 | AV42: 0 | AW42: 0 | AX42: 0 | AY42: 0 | AZ42: 0 | BA42: 0 | BB42: 0 | BC42: 0 | BD42: 0 | BE42: 0 | BF42: 0 | BG42: 0 | BH42: 0 | BI42: 0 | BJ42: 0 | BK42: 0 | BL42: 0 | BM42: 0 | BN42: 0 | BO42: 0 | BP42: 0 | BQ42: 0 | BR42: 0 | BS42: 0 | BT42: 0 | BU42: 0 | BV42: 0 | BW42: 0 | BX42: 0 | BY42: 0 | BZ42: 0 | CA42: 0 | CB42: 158.94 | CC42: 14.2 | CE42: 0 | CG42: 0 | CH42: 0 | CI42: 0 | CJ42: 0 | CK42: 0 | CL42: 0 | CM42: 0 | CN42: 0 | CO42: 0 | CP42: 0 | CQ42: 0
A43: ="-" -> - | B43: Хлеб пшеничный формовой из муки 1 сорта | C43: ="20" -> 20 | D43: 1.52 | E43: 0.00 | F43: 0.18 | G43: 0.18 | H43: 9.38 | I43: 45.93 | J43: 0 | K43: 0 | L43: 0 | M43: 0 | N43: 0.22 | O43: 9.12 | P43: 0.04 | Q43: 0 | R43: 0 | S43: 0 | T43: 0.36 | U43: 0 | V43: 0 | W43: 0 | X43: 0 | Y43: 0 | Z43: 0 | AA43: 0 | AB43: 0 | AC43: 0 | AD43: 0 | AE43: 0 | AF43: 0 | AG43: 0 | AH43: 0 | AI43: 0 | AJ43: 0 | AK43: 73.4 | AL43: 76.4 | AM43: 117 | AN43: 38.8 | AO43: 23 | AP43: 46 | AQ43: 17.4 | AR43: 83.2 | AS43: 51.6 | AT43: 72 | AU43: 59.4 | AV43: 31.2 | AW43: 55.2 | AX43: 461.6 | AY43: 0 | AZ43: 150.4 | BA43: 65.4 | BB43: 43.4 | BC43: 34.4 | BD43: 0 | BE43: 0 | BF43: 0 | BG43: 0 | BH43: 0 | BI43: 0 | BJ43: 0 | BK43: 0.02 | BL43: 0 | BM43: 0 | BN43: 0 | BO43: 0 | BP43: 0 | BQ43: 0 | BR43: 0 | BS43: 0.02 | BT43: 0 | BU43: 0 | BV43: 0.08 | BW43: 0 | BX43: 0 | BY43: 0 | BZ43: 0 | CA43: 0 | CB43: 7.82 | CC43: 1.24 | CE43: 0 | CG43: 0 | CH43: 0 | CI43: 0 | CJ43: 0 | CK43: 0 | CL43: 0 | CM43: 0 | CN43: 0 | CO43: 0 | CP43: 0 | CQ43: 0
B44: Итого за 'Ужин 2' | D44: 6.64 | E44: 0.00 | F44: 5.82 | G44: 0.18 | H44: 16.44 | I44: 144.01 | J44: 0 | K44: 0 | L44: 0 | M44: 0 | N44: 7.28 | O44: 9.12 | P44: 0.04 | Q44: 0 | R44: 0 | S44: 0 | T44: 0.36 | U44: 0 | V44: 0 | W44: 0 | X44: 0 | Y44: 0 | Z44: 0 | AA44: 0 | AB44: 0 | AC44: 0 | AD44: 0 | AE44: 0 | AF44: 0 | AG44: 0 | AH44: 0 | AI44: 0 | AJ44: 0 | AK44: 73.4 | AL44: 76.4 | AM44: 117 | AN44: 38.8 | AO44: 23 | AP44: 46 | AQ44: 17.4 | AR44: 83.2 | AS44: 51.6 | AT44: 72 | AU44: 59.4 | AV44: 31.2 | AW44: 55.2 | AX44: 461.6 | AY44: 0 | AZ44: 150.4 | BA44: 65.4 | BB44: 43.4 | BC44: 34.4 | BD44: 0 | BE44: 0 | BF44: 0 | BG44: 0 | BH44: 0 | BI44: 0 | BJ44: 0 | BK44: 0.02 | BL44: 0 | BM44: 0 | BN44: 0 | BO44: 0 | BP44: 0 | BQ44: 0 | BR44: 0 | BS44: 0.02 | BT44: 0 | BU44: 0 | BV44: 0.08 | BW44: 0 | BX44: 0 | BY44: 0 | BZ44: 0 | CA44: 0 | CB44: 166.76 | CC44: =SUM($CC$41:$CC$43) -> 15.44 | CD44: =$I$44/$I$46*100 -> 8.170780142 | CE44: 0 | CG44: 0 | CH44: 0 | CI44: 0 | CJ44: 0 | CK44: 0 | CL44: 0 | CM44: 0 | CN44: 0 | CO44: 0 | CP44: 0 | CQ44: 0
B45: Итого за день | D45: 93.10 | E45: 41.17 | F45: 82.15 | G45: 6.33 | H45: 293.44 | I45: 2192.33 | J45: 34.81 | K45: 12.61 | L45: 9.47 | M45: 0 | N45: 100.18 | O45: 167.65 | P45: 25.61 | Q45: 0 | R45: 0 | S45: 4.19 | T45: 18.63 | U45: 1362.39 | V45: 2551.88 | W45: 839.23 | X45: 330.11 | Y45: 1201.14 | Z45: 17.31 | AA45: 323.27 | AB45: 5804.43 | AC45: 1878.28 | AD45: 12.74 | AE45: 0.74 | AF45: 1.37 | AG45: 9.26 | AH45: 27.15 | AI45: 77.56 | AJ45: 0.4 | AK45: 3364.82 | AL45: 2794.59 | AM45: 4776.72 | AN45: 3459.32 | AO45: 1450.73 | AP45: 2410.69 | AQ45: 870.42 | AR45: 3128.24 | AS45: 2989.7 | AT45: 3689.18 | AU45: 5093.05 | AV45: 1658.38 | AW45: 2600.99 | AX45: 13217.38 | AY45: 201.45 | AZ45: 3782.95 | BA45: 3292.98 | BB45: 2194.62 | BC45: 1260.09 | BD45: 0.68 | BE45: 0.32 | BF45: 0.22 | BG45: 0.52 | BH45: 0.6 | BI45: 2.45 | BJ45: 0.05 | BK45: 8.17 | BL45: 0.01 | BM45: 2.65 | BN45: 0.08 | BO45: 0.11 | BP45: 0 | BQ45: 0.4 | BR45: 0.71 | BS45: 10.49 | BT45: 0.01 | BU45: 0 | BV45: 12.73 | BW45: 0.18 | BX45: 0.01 | BY45: 0 | BZ45: 0 | CA45: 0 | CB45: 2163.81 | CC45: 262.19 | CE45: 1290.68 | CG45: 0 | CH45: 0 | CI45: 0 | CJ45: 0 | CK45: 0 | CL45: 0 | CM45: 0 | CN45: 0 | CO45: 0 | CP45: 17.06 | CQ45: 3.2
B46: Норма (СанПиН 2.3/2.4.3590-20 7-11 лет) | D46: 57.75 | E46: 0.00 | F46: 59.25 | G46: 0.00 | H46: 251.25 | I46: 1762.50 | V46: 0 | W46: 0 | X46: 0 | Y46: 0 | Z46: 0 | AA46: 0 | AB46: 0 | AC46: 525 | AD46: 0 | AE46: 0.9 | AF46: 1.05 | AI46: 45 | CI46: 0 | CL46: 0 | CO46: 0
B47: Отклонение | D47: =D45-D46 -> 35.35 | E47: =E45-E46 -> 41.17 | F47: =F45-F46 -> 22.90 | G47: =G45-G46 -> 6.33 | H47: =H45-H46 -> 42.19 | I47: =I45-I46 -> 429.83 | V47: =V45-V46 -> 2551.88 | W47: =W45-W46 -> 839.23 | X47: =X45-X46 -> 330.11 | Y47: =Y45-Y46 -> 1201.14 | Z47: =Z45-Z46 -> 17.31 | AA47: =AA45-AA46 -> 323.27 | AB47: =AB45-AB46 -> 5804.43 | AC47: =AC45-AC46 -> 1353.28 | AD47: =AD45-AD46 -> 12.74 | AE47: =AE45-AE46 -> -0.16 | AF47: =AF45-AF46 -> 0.32 | AI47: =AI45-AI46 -> 32.56 | CI47: =CI45-CI46 -> 0 | CL47: =CL45-CL46 -> 0 | CO47: =CO45-CO46 -> 0
B48: Содержание, % от калорийности | D48: 17.00 | F48: 34.00 | H48: 49.00

Sheet 1
A1: Школа | B1: ГБОУ Белокатайская КШИ | E1: Отд./корп | I1: Дата | J1: 2024-11-22
A3: Прием пищи | B3: Раздел | C3: № рец. | D3: Блюдо | E3: Выход, г | F3: Цена | G3: Калорийность | H3: Белки | I3: Жиры | J3: Углеводы
A4: Завтрак | B4: гор.блюдо | D4: Омлет с морковью (вареный на пару) №236, сб.2018г. | E4: 200 | F4: 43.27 | G4: 233 | H4: 15 | I4: 17 | J4: 7
D5: Масло сливочное | E5: 10 | F5: 7.65 | G5: 66 | H5: 0 | I5: 7 | J5: 0
B6: гор.напиток | D6: Кофейный напиток на молоке сгущенном №305, сб.2018г. | E6: 200 | F6: 10.10 | G6: 81 | H6: 2 | I6: 1 | J6: 16
B7: хлеб бел. | C7: - | D7: Хлеб пшеничный формовой из муки 1 сорта | E7: 80 | F7: 4.94 | G7: 184 | H7: 6 | I7: 1 | J7: 38
D8: Сыр | E8: 10 | F8: 7.39 | G8: 35 | H8: 3 | I8: 3 | J8: 0
A11: Завтрак 2 | B11: напиток | D11: Молоко кипяченое №299, сб.2018 | E11: 200 | F11: 12.22 | G11: 111 | H11: 6 | I11: 6 | J11: 9
B13: конд.изд.
A14: Обед | B14: закуска | D14: Салат из свежих огурцов № 14, сб. 2018 г. | E14: 80 | F14: 13.21 | G14: 44 | H14: 1 | I14: 4 | J14: 3
B15: 1 блюдо | C15: аа | D15: Суп крестьянский с крупой №67, сб.2018г. | E15: 250 | F15: 5.62 | G15: 93 | H15: 2 | I15: 4 | J15: 15
B16: 2 блюдо | D16: Гуляш №96, сб.2018 г. | E16: 90 | F16: 41.79 | G16: 177 | H16: 12 | I16: 13 | J16: 3
B17: гарнир | C17: аа | D17: Капуста тушеная №148, сб. 2018 г. | E17: 150 | F17: 1.94 | G17: 111 | H17: 3 | I17: 5 | J17: 17
B18: напиток | D18: Чай с молоком и сахаром №301, сб. 2018 г. | E18: 180 | F18: 3.55 | G18: 44 | H18: 1 | I18: 1 | J18: 7
B19: хлеб бел. | C19: - | D19: Хлеб пшеничный формовой из муки 1 сорта | E19: 30 | F19: 1.85 | G19: 69 | H19: 2 | I19: 0 | J19: 14
B20: хлеб черн. | D20: Хлеб ржаной | E20: 30 | F20: 1.96 | G20: 53 | H20: 2 | I20: 0 | J20: 13
A23: Полдник | B23: булочное | D23: Булочка молочная №291, сб. 2018 г. | E23: 50 | F23: 2.77 | G23: 134 | H23: 5 | I23: 1 | J23: 27
B24: напиток | C24: - | D24: Сок яблочный | E24: 200 | F24: 24.00 | G24: 86 | H24: 1 | I24: 0 | J24: 21
C25: - | D25: Мандарины | E25: 100 | F25: 20.00 | G25: 27 | H25: 1 | I25: 0 | J25: 7
A27: Ужин | B27: гор.блюдо | D27: Рыба, запеченная в молочном соусе № 92, сб. 2018 г. | E27: 90 | F27: 27.63 | G27: 106 | H27: 12 | I27: 5 | J27: 2
B28: гарнир | C28: аа | D28: Каша гречневая рассыпчатая №183, сб. 2018г. | E28: 180/10 | F28: 12.03 | G28: 307 | H28: 10 | I28: 8 | J28: 58
B29: напиток | D29: Чай с сахаром №300, сб. 2018 г. | E29: 180 | F29: 0.94 | G29: 20 | H29: 0 | I29: 0 | J29: 5
B30: хлеб бел. | C30: - | D30: Хлеб пшеничный формовой из муки 1 сорта | E30: 10 | F30: 0.62 | G30: 23 | H30: 1 | I30: 0 | J30: 5
B31: хлеб черн. | D31: Хлеб ржаной | E31: 50 | F31: 3.27 | G31: 44 | H31: 2 | I31: 0 | J31: 10
B32: закуска
A33: Ужин 2 | B33: кисломол. | D33: Кефир №297 сб. 2021 | E33: 180 | F33: 14.20 | G33: 98 | H33: 5 | I33: 6 | J33: 7
C34: - | D34: Хлеб пшеничный формовой из муки 1 сорта | E34: 20 | F34: 1.24 | G34: 46 | H34: 2 | I34: 0 | J34: 9

Sheet Dop
A1: Дата составления | B1: 2024-11-22T21:03:21
A2: Дата печати | B2: 2024-11-21T12:34:44
A3: Группа | B3: школы младшие классы
A4: Физ.Норма | B4: СанПиН 2.3/2.4.3590-20 7-11 лет
A5: Предприятие | B5: 30
B6: 22.11.2024

Sheet SvodMenu
A4: МЕНЮ
B5: =IF(ПОП_Имя="","",ПОП_Имя) -> 30
B6: =IF(Дата_Сост="","",Дата_Сост) -> 45618.87733
A9: Номер | B9: Наименование изделий (блюд)
